[Event "*** Titled Tuesday Blitz"]
[Site "Chess.com"]
[Date "2019.09.03"]
[Round "10"]
[White "juniortay"]
[Black "MarshKnight"]
[Result "1-0"]
[WhiteElo "2425"]
[BlackElo "2213"]
[TimeControl "180+2"]
[EndTime "17:16:28 PDT"]
[Termination "juniortay won by resignation"]

1. e4 {[%clk 0:03:01.9]} 1... e6 {[%clk 0:02:59.9]} 2. Nf3 {[%clk 0:03:02.3]}
2... d5 {[%clk 0:03:01.2]} 3. Nc3 {[%clk 0:03:04.1]} 3... d4 {[%clk 0:03:00.6]}
4. Ne2 {[%clk 0:03:04.3]} 4... c5 {[%clk 0:03:02.2]} 5. d3 {[%clk 0:03:04.6]}
5... Nc6 {[%clk 0:03:01.6]} 6. g3 {[%clk 0:03:05.8]} 6... Bd6 {[%clk 0:02:58.8]}
7. Bg2 {[%clk 0:03:06.9]} 7... h5 {[%clk 0:02:59.9]} 8. h4 {[%clk 0:03:01.6]}
8... Nge7 {[%clk 0:02:59]} 9. O-O {[%clk 0:03:02]} 9... Ng6 {[%clk 0:02:59.2]}
10. c3 {[%clk 0:02:58.1]} 10... dxc3 {[%clk 0:02:56.5]} 11. bxc3 {[%clk
0:02:58.6]} 11... Nge5 {[%clk 0:02:48.5]} 12. d4 {[%clk 0:02:51.7]} 12... Nxf3+
{[%clk 0:02:49.5]} 13. Bxf3 {[%clk 0:02:52.7]} 13... cxd4 {[%clk 0:02:44.7]} 14.
cxd4 {[%clk 0:02:54.6]} 14... Bd7 {[%clk 0:02:43.5]} 15. Rb1 {[%clk 0:02:49.7]}
15... Qc7 {[%clk 0:02:42.2]} 16. e5 {[%clk 0:02:45.4]} 16... Be7 {[%clk
0:02:40.4]} 17. Nf4 {[%clk 0:02:38.5]} 17... O-O-O {[%clk 0:02:31.9]} 18. d5
{[%clk 0:02:33.3]} 18... Nxe5 {[%clk 0:02:29.3]} 19. Qb3 {[%clk 0:02:20.3]}
19... Ba4 {[%clk 0:02:11.3]} 20. Qxa4 {[%clk 0:02:13]} 20... Nxf3+ {[%clk
0:02:11.9]} 21. Kg2 {[%clk 0:02:13.7]} 21... e5 {[%clk 0:01:48.9]} 22. Kxf3
{[%clk 0:02:08.6]} 22... exf4 {[%clk 0:01:49.6]} 23. Bxf4 {[%clk 0:02:09.7]}
23... Qc3+ {[%clk 0:01:20.7]} 24. Kg2 {[%clk 0:02:09.5]} 24... Ba3 {[%clk
0:01:21.8]} 25. Rb3 {[%clk 0:01:45.3]} 25... Qc5 {[%clk 0:01:15.7]} 26. Qxa3
{[%clk 0:01:40.8]} 26... Qxd5+ {[%clk 0:01:16.2]} 27. Kg1 {[%clk 0:01:41.9]}
27... Kd7 {[%clk 0:01:09.1]} 28. Rd3 {[%clk 0:01:38.8]} 1-0

[Event "*** Titled Tuesday Blitz"]
[Site "Chess.com"]
[Date "2019.09.03"]
[Round "10"]
[White "kinga2008"]
[Black "Jenia84"]
[Result "0-1"]
[WhiteElo "1935"]
[BlackElo "2264"]
[TimeControl "180+2"]
[EndTime "17:16:33 PDT"]
[Termination "Jenia84 won by checkmate"]

1. e4 {[%clk 0:03:01.9]} 1... e5 {[%clk 0:02:58.1]} 2. Nf3 {[%clk 0:03:02.4]}
2... Nc6 {[%clk 0:02:59.1]} 3. d4 {[%clk 0:03:03.2]} 3... exd4 {[%clk
0:02:59.4]} 4. Bc4 {[%clk 0:03:05.1]} 4... Nf6 {[%clk 0:02:49.5]} 5. O-O {[%clk
0:03:05.3]} 5... d5 {[%clk 0:02:49.9]} 6. exd5 {[%clk 0:03:01.3]} 6... Nxd5
{[%clk 0:02:50.9]} 7. Nxd4 {[%clk 0:03:02.1]} 7... Be7 {[%clk 0:02:47.1]} 8.
Nxc6 {[%clk 0:03:02.5]} 8... bxc6 {[%clk 0:02:47.8]} 9. Nc3 {[%clk 0:03:04]}
9... Nxc3 {[%clk 0:02:41.8]} 10. Qxd8+ {[%clk 0:03:03.1]} 10... Bxd8 {[%clk
0:02:42.4]} 11. bxc3 {[%clk 0:03:05]} 11... O-O {[%clk 0:02:40.7]} 12. Ba3
{[%clk 0:03:01.9]} 12... Re8 {[%clk 0:02:40.5]} 13. Rae1 {[%clk 0:03:03.8]}
13... Be6 {[%clk 0:02:34.3]} 14. Re2 {[%clk 0:02:46.6]} 14... Be7 {[%clk
0:02:28.7]} 15. Bxe7 {[%clk 0:02:43.5]} 15... Bxc4 {[%clk 0:02:28.4]} 16. Re3
{[%clk 0:02:32.8]} 16... Bxf1 {[%clk 0:02:27.7]} 17. Kxf1 {[%clk 0:02:34.7]}
17... f6 {[%clk 0:02:27.2]} 18. Ke2 {[%clk 0:02:34.9]} 18... Kf7 {[%clk
0:02:28.2]} 19. Bc5 {[%clk 0:02:32.7]} 19... Rxe3+ {[%clk 0:02:28.9]} 20. fxe3
{[%clk 0:02:34.6]} 20... Ke6 {[%clk 0:02:29.1]} 21. Kd3 {[%clk 0:02:34.4]} 21...
Kd5 {[%clk 0:02:28.5]} 22. Bd4 {[%clk 0:02:35.9]} 22... c5 {[%clk 0:02:28.6]}
23. e4+ {[%clk 0:02:36.9]} 23... Kd6 {[%clk 0:02:29.1]} 24. Be3 {[%clk
0:02:38.8]} 24... Re8 {[%clk 0:02:28.3]} 25. Bf4+ {[%clk 0:02:39.1]} 25... Kc6
{[%clk 0:02:28.2]} 26. g4 {[%clk 0:02:39.4]} 26... Rd8+ {[%clk 0:02:24.5]} 27.
Kc4 {[%clk 0:02:39.2]} 27... Rd1 {[%clk 0:02:24.1]} 28. Be3 {[%clk 0:02:39]}
28... Re1 {[%clk 0:02:24.8]} 29. Kd3 {[%clk 0:02:38]} 29... c4+ {[%clk 0:02:23]}
30. Kd4 {[%clk 0:02:35.9]} 30... Re2 {[%clk 0:02:23.1]} 31. Bf4 {[%clk
0:02:33.2]} 31... Rxc2 {[%clk 0:02:18.8]} 32. Kxc4 {[%clk 0:02:34.3]} 32... Rxa2
{[%clk 0:02:19.4]} 33. Kd4 {[%clk 0:02:35.8]} 33... g5 {[%clk 0:02:16.3]} 34.
Bg3 {[%clk 0:02:27.5]} 34... Ra4+ {[%clk 0:02:13.7]} 35. Ke3 {[%clk 0:02:23.9]}
35... a5 {[%clk 0:02:13]} 36. h3 {[%clk 0:02:20.8]} 36... Rc4 {[%clk 0:02:08.2]}
37. e5 {[%clk 0:02:22.7]} 37... Rxc3+ {[%clk 0:02:04.2]} 38. Kf2 {[%clk
0:02:22.9]} 38... Rxg3 {[%clk 0:02:04.4]} 39. Kxg3 {[%clk 0:02:23.4]} 39... fxe5
{[%clk 0:02:05.4]} 40. h4 {[%clk 0:02:24.5]} 40... h6 {[%clk 0:02:05.3]} 41.
hxg5 {[%clk 0:02:25.4]} 41... hxg5 {[%clk 0:02:05.9]} 42. Kf3 {[%clk 0:02:27.3]}
42... Kd5 {[%clk 0:02:06.7]} 43. Ke3 {[%clk 0:02:28]} 43... a4 {[%clk
0:02:07.2]} 44. Kf2 {[%clk 0:02:29]} 44... a3 {[%clk 0:02:08.2]} 45. Kf1 {[%clk
0:02:30.4]} 45... Ke4 {[%clk 0:02:08.5]} 46. Kf2 {[%clk 0:02:32.3]} 46... Kf4
{[%clk 0:02:09.3]} 47. Ke2 {[%clk 0:02:33.9]} 47... a2 {[%clk 0:02:10.3]} 48.
Kd3 {[%clk 0:02:35.5]} 48... a1=Q {[%clk 0:02:10.9]} 49. Kc2 {[%clk 0:02:37.4]}
49... Qd4 {[%clk 0:02:11.3]} 50. Kb3 {[%clk 0:02:38.3]} 50... e4 {[%clk
0:02:11.8]} 51. Kc2 {[%clk 0:02:39.4]} 51... e3 {[%clk 0:02:12.5]} 52. Kb3
{[%clk 0:02:40.2]} 52... e2 {[%clk 0:02:13.4]} 53. Ka2 {[%clk 0:02:38.8]} 53...
Qb4 {[%clk 0:02:07.4]} 54. Ka1 {[%clk 0:02:39.3]} 54... e1=Q+ {[%clk 0:02:07.9]}
55. Ka2 {[%clk 0:02:40.5]} 55... Qeb1# {[%clk 0:02:08.7]} 0-1

[Event "*** Titled Tuesday Blitz"]
[Site "Chess.com"]
[Date "2019.09.03"]
[Round "10"]
[White "riconaipe"]
[Black "bluejay1897"]
[Result "1-0"]
[WhiteElo "2553"]
[BlackElo "2295"]
[TimeControl "180+2"]
[EndTime "17:17:14 PDT"]
[Termination "riconaipe won by resignation"]

1. d4 {[%clk 0:03:01.9]} 1... Nf6 {[%clk 0:02:46.8]} 2. c4 {[%clk 0:03:02.5]}
2... e6 {[%clk 0:02:46.8]} 3. Nc3 {[%clk 0:03:03.7]} 3... d5 {[%clk 0:02:45.7]}
4. cxd5 {[%clk 0:03:03.9]} 4... exd5 {[%clk 0:02:42.2]} 5. Bg5 {[%clk
0:03:04.4]} 5... Be7 {[%clk 0:02:42.8]} 6. e3 {[%clk 0:03:05.4]} 6... O-O {[%clk
0:02:42.7]} 7. Bd3 {[%clk 0:03:06.6]} 7... c6 {[%clk 0:02:41.6]} 8. Nge2 {[%clk
0:03:08]} 8... Nbd7 {[%clk 0:02:42.5]} 9. O-O {[%clk 0:03:09]} 9... Re8 {[%clk
0:02:43.8]} 10. Qc2 {[%clk 0:03:10.4]} 10... Nf8 {[%clk 0:02:45]} 11. f3 {[%clk
0:03:11.3]} 11... Ng6 {[%clk 0:02:43.7]} 12. Nf4 {[%clk 0:03:05]} 12... Nxf4
{[%clk 0:02:43]} 13. Bxf4 {[%clk 0:03:04.6]} 13... Bd6 {[%clk 0:02:44]} 14. Bxd6
{[%clk 0:03:03.8]} 14... Qxd6 {[%clk 0:02:44.4]} 15. Qf2 {[%clk 0:03:05.5]}
15... Bd7 {[%clk 0:02:31.1]} 16. e4 {[%clk 0:03:06.1]} 16... dxe4 {[%clk
0:02:31.6]} 17. fxe4 {[%clk 0:03:07]} 17... Qe7 {[%clk 0:02:26.6]} 18. e5 {[%clk
0:03:06.1]} 18... Ng4 {[%clk 0:02:25.7]} 19. Qg3 {[%clk 0:03:01.8]} 19... g6
{[%clk 0:02:09.8]} 20. Ne4 {[%clk 0:02:58]} 20... Bf5 {[%clk 0:01:58.2]} 21.
Nf6+ {[%clk 0:02:53.2]} 21... Nxf6 {[%clk 0:01:52.9]} 22. exf6 {[%clk
0:02:54.7]} 22... Qe3+ {[%clk 0:01:48.8]} 23. Qxe3 {[%clk 0:02:54.2]} 23... Rxe3
{[%clk 0:01:50.3]} 24. Bxf5 {[%clk 0:02:55.9]} 24... gxf5 {[%clk 0:01:51.4]} 25.
Rxf5 {[%clk 0:02:57.6]} 25... Rd8 {[%clk 0:01:52.6]} 26. Rd1 {[%clk 0:02:56.2]}
26... Re4 {[%clk 0:01:50]} 27. d5 {[%clk 0:02:56.1]} 27... cxd5 {[%clk 0:01:49]}
28. Rfxd5 {[%clk 0:02:52.4]} 28... Rxd5 {[%clk 0:01:45.8]} 29. Rxd5 {[%clk
0:02:53.9]} 29... h5 {[%clk 0:01:47]} 30. Rg5+ {[%clk 0:02:48.3]} 30... Kh7
{[%clk 0:01:46.4]} 31. Rg7+ {[%clk 0:02:49.3]} 31... Kh6 {[%clk 0:01:47]} 32.
Rxf7 {[%clk 0:02:50.8]} 32... Rb4 {[%clk 0:01:43.8]} 33. b3 {[%clk 0:02:51]}
33... Kg6 {[%clk 0:01:44.6]} 34. Rf8 {[%clk 0:02:51.6]} 34... Rb6 {[%clk
0:01:42.1]} 35. Kf2 {[%clk 0:02:47.2]} 35... Rc6 {[%clk 0:01:42.8]} 36. Kf3
{[%clk 0:02:45.7]} 36... Rc3+ {[%clk 0:01:41.9]} 37. Ke4 {[%clk 0:02:46.2]}
37... Rc2 {[%clk 0:01:42.7]} 38. Ke5 {[%clk 0:02:47.4]} 38... Rxa2 {[%clk
0:01:40.8]} 39. Rg8+ {[%clk 0:02:47.7]} 39... Kf7 {[%clk 0:01:40.4]} 40. Rg7+
{[%clk 0:02:48.3]} 40... Kf8 {[%clk 0:01:41]} 41. h4 {[%clk 0:02:40.6]} 41... b6
{[%clk 0:01:38]} 42. g3 {[%clk 0:02:30]} 42... Rb2 {[%clk 0:01:32.7]} 43. Ke6
{[%clk 0:02:29.5]} 43... Re2+ {[%clk 0:01:33]} 44. Kf5 {[%clk 0:02:30.7]} 44...
Re3 {[%clk 0:01:30.1]} 45. b4 {[%clk 0:02:31.4]} 45... a5 {[%clk 0:01:30.2]} 46.
bxa5 {[%clk 0:02:30.5]} 46... bxa5 {[%clk 0:01:31.3]} 47. Kf4 {[%clk 0:02:31.4]}
47... Re6 {[%clk 0:01:29.8]} 48. Kg5 {[%clk 0:02:32]} 48... Re5+ {[%clk
0:01:30.4]} 49. Kg6 {[%clk 0:02:32.7]} 49... Re3 {[%clk 0:01:29.4]} 50. Kxh5
{[%clk 0:02:32.7]} 50... a4 {[%clk 0:01:29.3]} 51. g4 {[%clk 0:02:27.7]} 51...
a3 {[%clk 0:01:22.7]} 52. Ra7 {[%clk 0:02:28.9]} 1-0

[Event "*** Titled Tuesday Blitz"]
[Site "Chess.com"]
[Date "2019.09.03"]
[Round "10"]
[White "chesstatour"]
[Black "Er_is_geen_hoop_meer"]
[Result "1-0"]
[WhiteElo "2038"]
[BlackElo "2336"]
[TimeControl "180+2"]
[EndTime "17:17:14 PDT"]
[Termination "chesstatour won by resignation"]

1. c4 {[%clk 0:03:01.9]} 1... e5 {[%clk 0:02:59.1]} 2. Nc3 {[%clk 0:03:03.8]}
2... g6 {[%clk 0:02:59.3]} 3. Nf3 {[%clk 0:03:03.2]} 3... Bg7 {[%clk 0:02:59.9]}
4. d4 {[%clk 0:03:04.9]} 4... d6 {[%clk 0:03:01]} 5. g3 {[%clk 0:03:03.4]} 5...
Nd7 {[%clk 0:03:01.7]} 6. Bg2 {[%clk 0:03:04.6]} 6... Ngf6 {[%clk 0:03:03.3]} 7.
O-O {[%clk 0:03:05.6]} 7... O-O {[%clk 0:03:04.9]} 8. b3 {[%clk 0:03:04.6]} 8...
h6 {[%clk 0:03:06]} 9. Bb2 {[%clk 0:03:05.4]} 9... Nh7 {[%clk 0:03:07.5]} 10.
dxe5 {[%clk 0:02:57.3]} 10... dxe5 {[%clk 0:03:07.3]} 11. Qc2 {[%clk 0:02:47.6]}
11... c6 {[%clk 0:03:04.1]} 12. Rad1 {[%clk 0:02:44.9]} 12... Qe7 {[%clk
0:03:05.1]} 13. Ne4 {[%clk 0:02:11.9]} 13... f5 {[%clk 0:03:01.1]} 14. Nd6
{[%clk 0:02:08.8]} 14... Ng5 {[%clk 0:02:59.6]} 15. Nh4 {[%clk 0:01:55.7]} 15...
Rf6 {[%clk 0:02:50]} 16. Nxc8 {[%clk 0:01:31]} 16... Rxc8 {[%clk 0:02:51.9]} 17.
Rxd7 {[%clk 0:00:58]} 17... Qxd7 {[%clk 0:02:52.4]} 18. Bxe5 {[%clk 0:00:59.3]}
18... Re6 {[%clk 0:02:53.3]} 19. Bxg7 {[%clk 0:00:50.1]} 19... Qxg7 {[%clk
0:02:55.2]} 20. c5 {[%clk 0:00:28.9]} 20... Kh7 {[%clk 0:02:49.1]} 21. Qc4
{[%clk 0:00:23.8]} 21... Qe7 {[%clk 0:02:47.3]} 22. e3 {[%clk 0:00:18.4]} 22...
Rd8 {[%clk 0:02:47]} 23. Nf3 {[%clk 0:00:15.4]} 23... Ne4 {[%clk 0:02:47.3]} 24.
h4 {[%clk 0:00:12.5]} 24... Nxc5 {[%clk 0:02:45.6]} 25. Nd4 {[%clk 0:00:11.4]}
25... Re5 {[%clk 0:02:47]} 26. h5 {[%clk 0:00:10.3]} 26... gxh5 {[%clk 0:02:45]}
27. Qc2 {[%clk 0:00:10.1]} 27... Ne4 {[%clk 0:02:45.1]} 28. Nxf5 {[%clk
0:00:08.8]} 28... Qe6 {[%clk 0:02:45.9]} 29. Nd4 {[%clk 0:00:08.7]} 29... Qg6
{[%clk 0:02:46]} 30. f3 {[%clk 0:00:07.7]} 30... Ng5 {[%clk 0:02:46.8]} 31.
Qxg6+ {[%clk 0:00:07]} 31... Kxg6 {[%clk 0:02:48.7]} 32. f4 {[%clk 0:00:04.9]}
32... Rxe3 {[%clk 0:02:50.1]} 33. Nc2 {[%clk 0:00:05.4]} 33... Re2 {[%clk
0:02:50.9]} 34. fxg5 {[%clk 0:00:04.9]} 34... hxg5 {[%clk 0:02:52.8]} 35. Na3
{[%clk 0:00:03.7]} 35... Rdd2 {[%clk 0:02:53.6]} 36. Bf3 {[%clk 0:00:03.7]}
36... Re6 {[%clk 0:02:54.3]} 37. Nc4 {[%clk 0:00:04]} 37... Rxa2 {[%clk
0:02:55.7]} 38. Rf2 {[%clk 0:00:04.2]} 38... b5 {[%clk 0:02:56.9]} 39. Rxa2
{[%clk 0:00:04.8]} 39... bxc4 {[%clk 0:02:58.8]} 40. bxc4 {[%clk 0:00:06]} 40...
c5 {[%clk 0:03:00.7]} 41. Bd5 {[%clk 0:00:06.8]} 41... g4 {[%clk 0:03:02.6]} 42.
Bxe6 {[%clk 0:00:07.6]} 42... Kf6 {[%clk 0:03:04.5]} 43. Bd5 {[%clk 0:00:08.6]}
43... Ke5 {[%clk 0:03:06.4]} 44. Rd2 {[%clk 0:00:09.5]} 1-0

[Event "*** Titled Tuesday Blitz"]
[Site "Chess.com"]
[Date "2019.09.03"]
[Round "10"]
[White "Th3ChessViking"]
[Black "2nd_life"]
[Result "0-1"]
[WhiteElo "2438"]
[BlackElo "2394"]
[TimeControl "180+2"]
[EndTime "17:17:22 PDT"]
[Termination "2nd_life won by resignation"]

1. d4 {[%clk 0:02:56.7]} 1... Nf6 {[%clk 0:03:00.2]} 2. c4 {[%clk 0:02:56.5]}
2... e6 {[%clk 0:03:01.3]} 3. Nc3 {[%clk 0:02:51.2]} 3... Bb4 {[%clk 0:03:01.3]}
4. f3 {[%clk 0:02:52.3]} 4... d5 {[%clk 0:02:59]} 5. a3 {[%clk 0:02:51.6]} 5...
Bxc3+ {[%clk 0:02:57]} 6. bxc3 {[%clk 0:02:53.5]} 6... c6 {[%clk 0:02:57.1]} 7.
e3 {[%clk 0:02:21]} 7... b6 {[%clk 0:02:55.8]} 8. cxd5 {[%clk 0:02:19.2]} 8...
cxd5 {[%clk 0:02:56.5]} 9. Bd3 {[%clk 0:02:17.8]} 9... O-O {[%clk 0:02:55.5]}
10. Qe2 {[%clk 0:02:16.9]} 10... Qc7 {[%clk 0:02:46.9]} 11. Bd2 {[%clk
0:02:03.7]} 11... e5 {[%clk 0:02:46.2]} 12. Nh3 {[%clk 0:01:44.5]} 12... e4
{[%clk 0:02:27.6]} 13. fxe4 {[%clk 0:01:09.5]} 13... dxe4 {[%clk 0:02:25.3]} 14.
Bc4 {[%clk 0:01:09.5]} 14... Bg4 {[%clk 0:02:23.7]} 15. Qf1 {[%clk 0:01:09.6]}
15... Nc6 {[%clk 0:02:12.2]} 16. Nf2 {[%clk 0:01:06.4]} 16... Na5 {[%clk
0:02:06]} 17. Ba6 {[%clk 0:01:03.4]} 17... Bc8 {[%clk 0:02:02.8]} 18. Be2 {[%clk
0:00:19.8]} 18... Be6 {[%clk 0:02:01.7]} 19. g4 {[%clk 0:00:17.4]} 19... Nb3
{[%clk 0:02:01.3]} 20. Rb1 {[%clk 0:00:12.3]} 20... Nxd2 {[%clk 0:01:56.9]} 21.
Kxd2 {[%clk 0:00:14.2]} 21... Rac8 {[%clk 0:01:57.2]} 22. Qc1 {[%clk 0:00:15.3]}
22... Bc4 {[%clk 0:01:49.7]} 23. g5 {[%clk 0:00:11.1]} 23... Nd5 {[%clk
0:01:44.8]} 24. Qc2 {[%clk 0:00:02.2]} 24... Bxe2 {[%clk 0:01:44.4]} 25. Kxe2
{[%clk 0:00:03.2]} 25... Nxc3+ {[%clk 0:01:45.3]} 0-1

[Event "*** Titled Tuesday Blitz"]
[Site "Chess.com"]
[Date "2019.09.03"]
[Round "10"]
[White "TreabharMakernes"]
[Black "Kimster98"]
[Result "0-1"]
[WhiteElo "2359"]
[BlackElo "2591"]
[TimeControl "180+2"]
[EndTime "17:17:26 PDT"]
[Termination "Kimster98 won by resignation"]

1. e4 {[%clk 0:03:01.9]} 1... d6 {[%clk 0:02:51.7]} 2. d4 {[%clk 0:03:01.6]}
2... Nf6 {[%clk 0:02:53.3]} 3. Nc3 {[%clk 0:03:01.4]} 3... c6 {[%clk 0:02:54.8]}
4. f4 {[%clk 0:02:59]} 4... Qa5 {[%clk 0:02:55.9]} 5. Bd3 {[%clk 0:02:57]} 5...
e5 {[%clk 0:02:56.5]} 6. Nf3 {[%clk 0:02:56.2]} 6... exd4 {[%clk 0:02:57.8]} 7.
Nxd4 {[%clk 0:02:55.5]} 7... g6 {[%clk 0:02:59.4]} 8. h3 {[%clk 0:02:47.5]} 8...
Bg7 {[%clk 0:02:58.5]} 9. Be3 {[%clk 0:02:46.7]} 9... O-O {[%clk 0:02:59.4]} 10.
O-O {[%clk 0:02:45.4]} 10... Nbd7 {[%clk 0:03:00.9]} 11. a3 {[%clk 0:02:38.5]}
11... Qc7 {[%clk 0:02:58.5]} 12. Qf3 {[%clk 0:02:26.3]} 12... b5 {[%clk
0:02:47.7]} 13. e5 {[%clk 0:01:40.2]} 13... dxe5 {[%clk 0:02:18.6]} 14. Qxc6
{[%clk 0:01:28.2]} 14... Qxc6 {[%clk 0:02:16.9]} 15. Nxc6 {[%clk 0:01:28.6]}
15... exf4 {[%clk 0:02:09.8]} 16. Bxf4 {[%clk 0:01:27]} 16... a6 {[%clk
0:02:07.5]} 17. Bd6 {[%clk 0:01:22.9]} 17... Re8 {[%clk 0:01:58.3]} 18. Rae1
{[%clk 0:01:16.9]} 18... Bb7 {[%clk 0:01:53.1]} 19. Ne7+ {[%clk 0:01:05.1]}
19... Kh8 {[%clk 0:01:49.4]} 20. Ne4 {[%clk 0:01:02.5]} 20... Nxe4 {[%clk
0:01:47.4]} 21. Bxe4 {[%clk 0:01:02.9]} 21... Bxe4 {[%clk 0:01:48.5]} 22. Rxe4
{[%clk 0:01:03]} 22... f5 {[%clk 0:01:50]} 23. Rh4 {[%clk 0:00:30]} 23... Bf6
{[%clk 0:01:39.1]} 24. Nxg6+ {[%clk 0:00:29.6]} 24... Kg7 {[%clk 0:01:31]} 0-1

[Event "*** Titled Tuesday Blitz"]
[Site "Chess.com"]
[Date "2019.09.03"]
[Round "10"]
[White "przemekpiotrowski"]
[Black "Thjop"]
[Result "0-1"]
[WhiteElo "2417"]
[BlackElo "2568"]
[TimeControl "180+2"]
[EndTime "17:18:07 PDT"]
[Termination "Thjop won by resignation"]

1. d4 {[%clk 0:02:56.1]} 1... Nf6 {[%clk 0:03:00.7]} 2. Nf3 {[%clk 0:02:56.4]}
2... g6 {[%clk 0:03:02]} 3. g3 {[%clk 0:02:57.2]} 3... Bg7 {[%clk 0:03:03.1]} 4.
Bg2 {[%clk 0:02:58.5]} 4... O-O {[%clk 0:03:05]} 5. O-O {[%clk 0:02:59.9]} 5...
d6 {[%clk 0:03:05.6]} 6. c4 {[%clk 0:03:01.1]} 6... Nc6 {[%clk 0:03:06]} 7. Nc3
{[%clk 0:03:02]} 7... e5 {[%clk 0:03:07.3]} 8. dxe5 {[%clk 0:02:52.4]} 8... dxe5
{[%clk 0:03:09.2]} 9. Qxd8 {[%clk 0:02:53.1]} 9... Rxd8 {[%clk 0:03:09.7]} 10.
Bg5 {[%clk 0:02:54.4]} 10... Be6 {[%clk 0:03:06.9]} 11. b3 {[%clk 0:02:50.4]}
11... h6 {[%clk 0:03:04.9]} 12. Bxf6 {[%clk 0:02:43.9]} 12... Bxf6 {[%clk
0:03:06.8]} 13. Rfd1 {[%clk 0:02:45.3]} 13... e4 {[%clk 0:03:02.1]} 14. Nxe4
{[%clk 0:02:39.5]} 14... Bxa1 {[%clk 0:03:01]} 15. Rxa1 {[%clk 0:02:41.4]} 15...
b6 {[%clk 0:02:48.9]} 16. e3 {[%clk 0:02:36.1]} 16... Rac8 {[%clk 0:02:44.4]}
17. h3 {[%clk 0:02:15.7]} 17... Kg7 {[%clk 0:02:27.1]} 18. Nc3 {[%clk
0:02:12.3]} 18... Nb4 {[%clk 0:02:20.8]} 19. Nd4 {[%clk 0:01:53.7]} 19... c5
{[%clk 0:02:18.5]} 20. Nxe6+ {[%clk 0:01:54.5]} 20... fxe6 {[%clk 0:02:19.6]}
21. Ne4 {[%clk 0:01:56.1]} 21... Rc7 {[%clk 0:02:16.5]} 22. Bf3 {[%clk
0:01:55.5]} 22... Nc6 {[%clk 0:02:16.3]} 23. Be2 {[%clk 0:01:51.8]} 23... Ne5
{[%clk 0:02:16.6]} 24. Kg2 {[%clk 0:01:52.5]} 24... a5 {[%clk 0:02:14.7]} 25. a3
{[%clk 0:01:51.6]} 25... Nd7 {[%clk 0:02:14.2]} 26. Rb1 {[%clk 0:01:52.3]} 26...
Nf6 {[%clk 0:02:14]} 27. Nc3 {[%clk 0:01:45.2]} 27... Rd2 {[%clk 0:02:13]} 28.
b4 {[%clk 0:01:45]} 28... Rc2 {[%clk 0:02:10.5]} 29. Nb5 {[%clk 0:01:44.3]}
29... Rd7 {[%clk 0:02:05.5]} 30. bxc5 {[%clk 0:01:24.5]} 30... bxc5 {[%clk
0:01:52]} 31. Bd1 {[%clk 0:01:22]} 31... Rcd2 {[%clk 0:01:49.9]} 32. Bf3 {[%clk
0:01:19.3]} 32... Rc2 {[%clk 0:01:45.8]} 33. Bd1 {[%clk 0:01:00.1]} 33... Rxc4
{[%clk 0:01:45]} 34. a4 {[%clk 0:01:01.3]} 34... Rd2 {[%clk 0:01:40.5]} 35. Na3
{[%clk 0:01:01.3]} 35... Rb4 {[%clk 0:01:40]} 36. Rc1 {[%clk 0:01:01]} 36... Ne4
{[%clk 0:01:39.4]} 37. Bc2 {[%clk 0:00:55.7]} 37... Nxf2 {[%clk 0:01:35.7]} 38.
Kf1 {[%clk 0:00:56.2]} 38... Nxh3 {[%clk 0:01:35.5]} 39. Bd1 {[%clk 0:00:53.4]}
39... Nf2 {[%clk 0:01:34.7]} 40. Be2 {[%clk 0:00:50.7]} 40... Ne4 {[%clk
0:01:33.3]} 41. Nc4 {[%clk 0:00:50.6]} 41... Nxg3+ {[%clk 0:01:33.3]} 42. Kf2
{[%clk 0:00:50.4]} 42... Nxe2 {[%clk 0:01:32.1]} 0-1

[Event "*** Titled Tuesday Blitz"]
[Site "Chess.com"]
[Date "2019.09.03"]
[Round "10"]
[White "chess3054"]
[Black "nitpicker"]
[Result "1-0"]
[WhiteElo "2485"]
[BlackElo "2259"]
[TimeControl "180+2"]
[EndTime "17:18:36 PDT"]
[Termination "chess3054 won by resignation"]

1. e4 {[%clk 0:02:58.9]} 1... d5 {[%clk 0:02:58.7]} 2. exd5 {[%clk 0:02:59.7]}
2... Qxd5 {[%clk 0:02:59.6]} 3. Nc3 {[%clk 0:03:00.4]} 3... Qd8 {[%clk
0:03:00.2]} 4. Bc4 {[%clk 0:03:01.4]} 4... Nf6 {[%clk 0:02:59.4]} 5. Nf3 {[%clk
0:03:01.1]} 5... h6 {[%clk 0:02:56.2]} 6. O-O {[%clk 0:02:59.4]} 6... Bf5 {[%clk
0:02:54.6]} 7. d4 {[%clk 0:02:55.2]} 7... c6 {[%clk 0:02:52.6]} 8. Bf4 {[%clk
0:02:52.4]} 8... e6 {[%clk 0:02:52]} 9. Re1 {[%clk 0:02:51.7]} 9... Bd6 {[%clk
0:02:51.4]} 10. Bxd6 {[%clk 0:02:30.2]} 10... Qxd6 {[%clk 0:02:52]} 11. d5
{[%clk 0:02:29.4]} 11... cxd5 {[%clk 0:02:39.9]} 12. Nxd5 {[%clk 0:02:29.6]}
12... Nxd5 {[%clk 0:02:31]} 13. Bxd5 {[%clk 0:02:29.7]} 13... Qc7 {[%clk
0:01:14.8]} 14. Nd4 {[%clk 0:02:02.4]} 14... O-O {[%clk 0:01:11]} 15. Qf3 {[%clk
0:01:56.9]} 15... exd5 {[%clk 0:00:52.3]} 16. Nxf5 {[%clk 0:01:56.8]} 16... Qxc2
{[%clk 0:00:36.8]} 17. Rac1 {[%clk 0:01:44.6]} 17... Qxb2 {[%clk 0:00:36.4]} 18.
Rb1 {[%clk 0:01:23.1]} 18... Qf6 {[%clk 0:00:26]} 19. Rxb7 {[%clk 0:01:12.5]}
19... Nc6 {[%clk 0:00:25.6]} 20. Qxd5 {[%clk 0:01:13.1]} 20... Rac8 {[%clk
0:00:19.5]} 21. Qf3 {[%clk 0:00:48.1]} 21... Rfd8 {[%clk 0:00:17.8]} 22. h3
{[%clk 0:00:48.2]} 22... Ne5 {[%clk 0:00:18.5]} 23. Qe4 {[%clk 0:00:37.8]} 23...
Rc4 {[%clk 0:00:17.9]} 24. Qxe5 {[%clk 0:00:37.1]} 24... Qxe5 {[%clk 0:00:17.5]}
25. Rxe5 {[%clk 0:00:39]} 25... Rd1+ {[%clk 0:00:17.6]} 26. Kh2 {[%clk
0:00:40.1]} 26... Rc2 {[%clk 0:00:17.6]} 27. Re8+ {[%clk 0:00:40.1]} 27... Kh7
{[%clk 0:00:18.8]} 28. Rxf7 {[%clk 0:00:41.5]} 28... Kg6 {[%clk 0:00:18.7]} 29.
Ree7 {[%clk 0:00:35.2]} 29... Rxf2 {[%clk 0:00:16.5]} 30. Nh4+ {[%clk
0:00:36.3]} 1-0